Cogmind - Beta 13 @@@ ROGUE MODE // 2024.04.26 @ 14:19:54 Player: graour Result: Self-destructed Performance ------------- Evolutions (2) 1000 Regions Visited (5) 1000 Robots Destroyed (19) 95 Value Destroyed (414) 414 Prototype IDs (23) 460 Alien Tech Used (0) 0 Bonus (300) 300 TOTAL SCORE: 3269 Bonus ------- Aligned with FarCom 300 Cogmind --------- Core Integrity 294/550 Matter 300/300 Energy 100/100 System Corruption 0% Temperature Cool (27) Movement Core (50) Location -8/Materials Parts ------- > --- POWER (1) -------- (None) > --- PROPULSION (2) --- (None) > --- UTILITY (6) ------ Hacking Suite > --- WEAPON (2) ------- Mining Claw > --- INVENTORY (5) ---- Light Ion Engine Heat Sink Assault Rifle Light Assault Rifle Rocket Launcher Peak State ------------ > --- POWER ------------ (None) > --- PROPULSION ------- (None) > --- UTILITY ---------- Terrain Scanner Hacking Suite > --- WEAPON ----------- Particle Gun Assault Rifle > --- INVENTORY -------- Light Ion Engine Heat Sink Small Laser Mining Claw [Rating: 7] Favorites ----------- Power Light Ion Engine Engine Light Ion Engine Propulsion None Utility Terrain Scanner Device Terrain Scanner Hackware Hacking Suite Weapon Small Laser Energy Gun Small Laser Ballistic Gun Assault Rifle Slashing Weapon Mining Claw Build | -11 -10 -10 -10 -9 -8 ------- Run | Yrd Mat Min Exi Min Mat Slots Evolved 4 | . . . . . 4 Power . | . . . . . . Propulsion . | . . . . . . Utility 4 | . . . . . 4 Weapon . | . . . . . . Parts Attached 17 | 2 12 2 . . 1 Power 1 | . 1 . . . . Engine 1 | . 1 . . . . Core . | . . . . . . Reactor . | . . . . . . Propulsion . | . . . . . . Treads . | . . . . . . Leg . | . . . . . . Wheel . | . . . . . . Hover . | . . . . . . Flight . | . . . . . . Utility 2 | . 2 . . . . Device 1 | . 1 . . . . Storage . | . . . . . . Processor . | . . . . . . Hackware 1 | . 1 . . . . Protection . | . . . . . . Artifact . | . . . . . . Weapon 14 | 2 9 2 . . 1 Energy Gun 7 | 1 4 2 . . . Energy Cannon . | . . . . . . Ballistic Gun 3 | 1 2 . . . . Ballistic Cannon . | . . . . . . Launcher . | . . . . . . Special Weapon . | . . . . . . Impact Weapon . | . . . . . . Slashing Weapon 4 | . 3 . . . 1 Piercing Weapon . | . . . . . . Special Melee Weapon . | . . . . . . Unidentified Prototypes . | . . . . . . Parts Lost 3 | . 1 1 . . 1 Power . | . . . . . . Propulsion . | . . . . . . Utility . | . . . . . . Weapon 3 | . 1 1 . . 1 Highest Loss Streak 1 | . 1 1 . . 1 To Critical Strikes . | . . . . . . Average Slot Usage (%) 39 | . 36 52 42 42 24 Device 11 | . 10 14 14 14 6 Hackware 8 | . 4 14 14 14 9 Energy Gun 12 | . 5 24 14 14 6 Ballistic Gun 4 | . 10 . . . . Slashing Weapon 2 | . 3 . . . 2 Naked Turns . | . . . . . . Heaviest Build 6 | 3 6 5 2 2 3 Greatest Support 3 | 3 3 3 3 3 3 Greatest Overweight (x) 1 | . 1 1 . . . Average Overweight (x) . | . . . . . . Largest Inventory Capacity 5 | 5 5 5 5 5 5 Average Capacity 5 | 5 5 5 5 5 5 Most Carried 5 | 3 5 5 5 5 5 Average Carried 4 | 1 4 4 5 5 4 Final Capacity 5 | 5 5 5 5 5 5 Final Carried 5 | 3 4 5 5 5 5 Class Distribution -------------------- 86% | Mutant 13% | Scout Dominant Class ---------------- Mutant | -10/Materials Mutant | -10/Mines Mutant | -10/Exiles Scout | -9/Mines Scout | -8/Materials Resources | -11 -10 -10 -10 -9 -8 ----------- Run | Yrd Mat Min Exi Min Mat Matter Collected 456 | 152 279 20 . . 5 Remotely . | . . . . . . Salvage Created 571 | . 489 32 . . 50 Parts 38 | . 35 2 . . 1 Haulers Intercepted 2 | . 2 . . . . Recyclers Shooed . | . . . . . . Parts Field Recycled . | . . . . . . Retrieved Matter . | . . . . . . Parts Self-Destructed . | . . . . . . Prevented . | . . . . . . Kills | -11 -10 -10 -10 -9 -8 ------- Run | Yrd Mat Min Exi Min Mat Combat Hostiles Destroyed 14 | . 10 3 . . 1 Melee 1 | . . . . . 1 Guns 13 | . 10 3 . . . Classes Destroyed 5 | . 5 . . . . Tunneler 1 | . 1 . . . . Hauler 2 | . 2 . . . . Operator 2 | . 2 . . . . Swarmer 6 | . 3 3 . . . Grunt 8 | . 7 . . . 1 Best Kill Streak 4 | . 3 4 . . 1 Combat Bots Only 3 | . 3 3 . . 1 Max Kills in Single Turn 2 | . 2 2 . . 1 Gunslinging 1 | . 1 1 . . . Exploded . | . . . . . . Melee 1 | . . . . . 1 Uniques/NPCs Destroyed . | . . . . . . Combat | -11 -10 -10 -10 -9 -8 -------- Run | Yrd Mat Min Exi Min Mat Hostile Shots Fired 73 | . 40 12 . . 21 Missed 16 | . 8 3 . . 5 Damage Taken 812 | . 374 157 . . 281 Core 442 | . 110 76 . . 256 Absorbed by Shields . | . . . . . . Core Remaining (%) 62 | 100 . . . 25 . Volleys Fired 35 | . 26 7 . . 2 Largest 2 | . 2 2 . . 1 Hottest 105 | . 105 105 . . 40 Shots Fired 64 | . 51 11 . . 2 Gun 64 | . 51 11 . . 2 Cannon . | . . . . . . Launcher . | . . . . . . Special . | . . . . . . Kinetic 32 | . 32 . . . . Thermal 32 | . 19 11 . . 2 Explosive . | . . . . . . Electromagnetic . | . . . . . . Robot Hit Streak 13 | . 11 13 . . 1 Robot Miss Streak 2 | . 2 1 . . 1 Penetration Max . | . . . . . . Secondary Targets 4 | . 3 1 . . . Max Gunslinging Chain 1 | . 1 1 . . . Shots Hit Robots 58 | . 46 7 . . 5 Core Hits 25 | . 19 4 . . 2 Critical Kills . | . . . . . . Critical Parts Destroyed . | . . . . . . Critical Strikes . | . . . . . . Melee Attacks 18 | . 11 . . . 7 Impact . | . . . . . . Slashing 18 | . 11 . . . 7 Piercing . | . . . . . . Sneak Attacks 7 | . 6 . . . 1 Combat Hostiles 1 | . . . . . 1 Follow-up Attacks . | . . . . . . Damage Inflicted 1062 | . 839 93 . . 130 Guns 610 | . 506 93 . . 11 Cannons . | . . . . . . Explosions . | . . . . . . Melee 452 | . 333 . . . 119 Ramming . | . . . . . . Kinetic 279 | . 279 . . . . Thermal 331 | . 227 93 . . 11 Explosive . | . . . . . . Electromagnetic . | . . . . . . Impact . | . . . . . . Slashing 452 | . 333 . . . 119 Piercing . | . . . . . . Highest Corruption . | . . . . . . Average Corruption . | . . . . . . Corruption Purged . | . . . . . . Corruption Blocked . | . . . . . . Overload Shots . | . . . . . . Overflow Damage 56 | . 56 . . . . Projectiles . | . . . . . . Explosions . | . . . . . . Melee 56 | . 56 . . . . Knockbacks . | . . . . . . Impact . | . . . . . . Kinetic . | . . . . . . Secondary . | . . . . . . Self-Inflicted Damage . | . . . . . . Shots . | . . . . . . Rammed . | . . . . . . Targets Rammed . | . . . . . . Kicked . | . . . . . . Crushed . | . . . . . . Highest Temperature 120 | . 79 120 . . 6 Average Temperature 36 | . 31 57 . . 6 Received Heat Transfer 333 | . 177 12 . . 144 Siege Activations . | . . . . . . Robots Corrupted . | . . . . . . Combat Hostiles . | . . . . . . Parts Fried . | . . . . . . Impact Corruptions . | . . . . . . Robots Melted . | . . . . . . Combat Hostiles . | . . . . . . Parts Melted 2 | . 1 1 . . . Heat Transferred 744 | . 508 211 . . 25 Parts Sabotaged . | . . . . . . Parts Stolen . | . . . . . . Parts Stripped . | . . . . . . Power Chain Reactions . | . . . . . . Alert | -11 -10 -10 -10 -9 -8 ------- Run | Yrd Mat Min Exi Min Mat Peak Influence 336 | . 336 122 . . 126 Initial 52 | . . 52 . . . Average 113 | . 160 118 . . 28 Maximum Alert Level 1 | . 1 . . . . Low Security (%) 81 | 100 60 100 . 100 100 Level 1 18 | . 39 . . . . Level 2 . | . . . . . . Level 3 . | . . . . . . Level 4 . | . . . . . . Level 5 . | . . . . . . High Security . | . . . . . . Max Security . | . . . . . . Squads Dispatched 3 | . 2 . . . 1 Investigation . | . . . . . . Extermination . | . . . . . . Reinforcement 3 | . 2 . . . 1 Assault . | . . . . . . Garrison . | . . . . . . Intercept . | . . . . . . Searches Triggered . | . . . . . . Construction Impeded . | . . . . . . Haulers Reinforced . | . . . . . . Active Scanning Responses . | . . . . . . Cargo Convoy Interrupts . | . . . . . . Stealth | -11 -10 -10 -10 -9 -8 --------- Run | Yrd Mat Min Exi Min Mat Distress Signals 4 | . 2 . . . 2 Communications Jammed . | . . . . . . Distress Signals . | . . . . . . Times Spotted 36 | . 16 7 . . 13 Peak Tracking Total 9 | . 4 3 . . 9 Tactical Retreats 3 | . . 1 . . 2 Traps | -11 -10 -10 -10 -9 -8 ------- Run | Yrd Mat Min Exi Min Mat Traps Triggered 1 | . . . . . 1 Indirectly . | . . . . . . Trap Hack Attempts . | . . . . . . Triggered . | . . . . . . Disarmed . | . . . . . . Reprogrammed . | . . . . . . Reused . | . . . . . . Traps Extracted . | . . . . . . Installed . | . . . . . . Triggered . | . . . . . . Objects Rigged 1 | . 1 . . . . Machines | -11 -10 -10 -10 -9 -8 ---------- Run | Yrd Mat Min Exi Min Mat Machines Disabled . | . . . . . . Max in Single Turn . | . . . . . . Machines Repaired . | . . . . . . Machines Dismantled . | . . . . . . Machines Sabotaged . | . . . . . . Overloaded Fab Kills . | . . . . . . Hacking | -11 -10 -10 -10 -9 -8 --------- Run | Yrd Mat Min Exi Min Mat Machines Accessed 7 | . 4 . 2 . 1 Terminals 4 | . 3 . . . 1 Fabricators . | . . . . . . Repair Stations . | . . . . . . Recycling Units 1 | . 1 . . . . Scanalyzers . | . . . . . . Garrison Access . | . . . . . . Total Hacks 19 | . 12 . 5 . 2 Successful 10 | . 4 . 5 . 1 Failed 9 | . 8 . . . 1 Catastrophic 2 | . 1 . . . 1 Database Lockouts . | . . . . . . Manual 12 | . 9 . 1 . 2 Terminals 13 | . 11 . . . 2 Fabricators . | . . . . . . Repair Stations . | . . . . . . Recycling Units 1 | . 1 . . . . Scanalyzers . | . . . . . . Garrison Access . | . . . . . . Terminal Hacks 6 | . 1 . 5 . . Record 4 | . . . 4 . . Robot Analysis 1 | . 1 . . . . Derelict Proto ID Bank 1 | . . . 1 . . Fabricator Hacks . | . . . . . . Repair Station Hacks . | . . . . . . Recycling Unit Hacks . | . . . . . . Scanalyzer . | . . . . . . Garrison Access Hacks . | . . . . . . Unauthorized Hacks 4 | . 3 . . . 1 Terminals 4 | . 3 . . . 1 Botnet 1 | . 1 . . . . Detonate 1 | . 1 . . . . Operators 2 | . 1 . . . 1 Fabricators . | . . . . . . Repair Stations . | . . . . . . Recycling Units . | . . . . . . Scanalyzers . | . . . . . . Garrison Access . | . . . . . . Data Cores Recovered . | . . . . . . Used . | . . . . . . Hacking Detections 5 | . 4 . . . 1 Full Trace Events . | . . . . . . Feedback Events . | . . . . . . Feedback Blocked . | . . . . . . Robot Schematics Acquired . | . . . . . . Robots Built . | . . . . . . Authchips . | . . . . . . Time . | . . . . . . Total Robot Build Rating . | . . . . . . Part Schematics Acquired . | . . . . . . Parts Built . | . . . . . . Authchips . | . . . . . . Time . | . . . . . . Total Part Build Rating . | . . . . . . Parts Repaired . | . . . . . . Time . | . . . . . . Parts Recycled . | . . . . . . Recycled Matter . | . . . . . . Retrieved Matter . | . . . . . . Retrieved Components . | . . . . . . Parts Scanalyzed . | . . . . . . Part Schematics Acquired . | . . . . . . Parts Damaged . | . . . . . . Bothacking | -11 -10 -10 -10 -9 -8 ------------ Run | Yrd Mat Min Exi Min Mat Used RIF Installer . | . . . . . . Robots Hacked . | . . . . . . Non-combat . | . . . . . . Combat . | . . . . . . Robot Hacks Applied . | . . . . . . Relay Couplers Released . | . . . . . . Fabnet Peak Effective % . | . . . . . . Robots Rewired . | . . . . . . Allies Hacked . | . . . . . . Hacks Repelled . | . . . . . . Allies | -11 -10 -10 -10 -9 -8 -------- Run | Yrd Mat Min Exi Min Mat Total Allies . | . . . . . . Largest Group . | . . . . . . Highest-Rated Group . | . . . . . . Highest-Rated Ally . | . . . . . . Total Orders . | . . . . . . Ally Attacks . | . . . . . . Total Damage . | . . . . . . Kills . | . . . . . . Allies Corrupted . | . . . . . . Allies Melted . | . . . . . . Intel | -11 -10 -10 -10 -9 -8 ------- Run | Yrd Mat Min Exi Min Mat Robot Analysis Total 1 | . 1 . . . . Derelict Logs Recovered 1 | . . . . 1 . Drone Launches . | . . . . . . Drone Recoveries . | . . . . . . Exploration | -11 -10 -10 -10 -9 -8 ------------- Run | Yrd Mat Min Exi Min Mat Turns Passed 969 | 34 403 244 106 26 156 Spaces Moved 1247 | 55 438 255 212 52 235 Core 1247 | 55 438 255 212 52 235 Treads . | . . . . . . Legs . | . . . . . . Wheels . | . . . . . . Hover . | . . . . . . Flight . | . . . . . . Fastest Speed 50 | 50 50 50 50 50 50 Average Speed 58 | 50 54 83 50 50 50 Slowest Speed 100 | 50 100 100 50 50 50 Overloaded Moves . | . . . . . . Propulsion Burnouts . | . . . . . . Robots Hopped . | . . . . . . Cave-ins Triggered . | . . . . . . Exploration Rate (%) 38 | 4 79 49 62 20 19 Regions Visited 5 Branch Regions 3 Pre-discovered Areas . | . . . . . . Known Exits Taken . | . . . . . . Unknown Exits Taken 5 | 1 1 1 1 1 . Scrap Searched 2 | . . 1 . 1 . Spaces Dug 1 | . . . . . 1 Terrain Destroyed 1 | . . . . . 1 Melee 1 | . . . . . 1 Projectile . | . . . . . . AOE . | . . . . . . Terrain Rammed . | . . . . . . Walls Destroyed . | . . . . . . Machines Disabled . | . . . . . . Actions | -11 -10 -10 -10 -9 -8 --------- Run | Yrd Mat Min Exi Min Mat Total 1386 | 59 533 274 211 51 258 Wait 48 | . 28 9 . . 11 Move 1242 | 54 437 254 211 51 235 Hop . | . . . . . . Pick Up 13 | 3 7 2 . . 1 Fast Attach 4 | 2 2 . . . . Attach 9 | . 7 1 . . 1 Detach 6 | . 6 . . . . Swap 4 | . 3 1 . . . Drop 7 | . 6 . . . 1 Fire 35 | . 26 7 . . 2 Melee 18 | . 11 . . . 7 Ram . | . . . . . . Kick . | . . . . . . Crush . | . . . . . . Escape Stasis . | . . . . . . Rewire . | . . . . . . Trap . | . . . . . . Miscellaneous . | . . . . . . Route ------- -11/Scrapyard -10/Materials (discovered 3 exits: [*Mat] / [*Min x2]) -10/Mines (discovered 2 exits: [*Mat] / *Exi) -10/Exiles -9/Mines -8/Materials (discovered 1 exit: Fac) History --------- Turn | Location | Event 6 | -11/Scrapyard | Discovered new exit (range 14) 35 | -11/Scrapyard | Entered Materials 40 | -10/Materials | Discovered new exit (range 16) 222 | -10/Materials | Discovered new exit (range 6) 297 | -10/Materials | Discovered new exit (range 4) 331 | -10/Materials | Build established: Mutant 438 | -10/Materials | Entered Mines 443 | -10/Mines | Core integrity fell below 50% 464 | -10/Mines | Discovered new exit (range 12) 591 | -10/Mines | Assembled infested the area 618 | -10/Mines | Met 8R-AWN 679 | -10/Mines | Discovered new exit (range 5) 682 | -10/Mines | Entered Exiles 695 | -10/Exiles | Welcomed by 8R-AWN 703 | -10/Exiles | Met EX-HEX 718 | -10/Exiles | Met EX-BIN 723 | -10/Exiles | Aligned with FarCom system 724 | -10/Exiles | Given EX-Vault access code 741 | -10/Exiles | Opened EX-Vault 752 | -10/Exiles | Warned to stay clear of 0b10 Research branches 765 | -10/Exiles | Met EX-DEC 783 | -10/Exiles | Discovered new exit (range 14) 788 | -10/Exiles | Entered Mines 798 | -9/Mines | Met a Derelict bent on vengeance 806 | -9/Mines | Discovered new exit (range 6) 811 | -9/Mines | Learned location of 1 exit from Materials 814 | -9/Mines | Entered Materials 814 | -8/Materials | Evolved 4 slots: Utility x4 815 | -8/Materials | Identified exit to Factory 970 | -8/Materials | Self-destructed Last Messages --------------- 00930_ O-16 Technician uses terminal to summon reinforcements. 00930_ ALERT: Hostiles spotted, dispatching reinforcements to Terminal M001. 00930_ O-16 Technician locks terminal. 00931_ Triggered Explosive Trap. 00931_ An explosion rips through the floor. 00931_ Sml. Laser destroyed. 00931_ Electrolysis Chamber disabled. 00931_ K-01 Serf destroyed. 00932_ U-05 Engineer builds a Wall. 00940_ Acquired 5 matter. 00944_ Acquired Rocket Launcher. 00953_ Sneak attack on G-47 Trooper. 00964_ G-47 Trooper destroyed. 00965_ K-01 Serf collects debris. 00966_ Critical hit (Burn: +37). 00968_ K-01 Serf collects debris. 00969_ Slug penetrates Wall. 00969_ K-01 Serf collects debris. Map ----- +----------------------------------------------------+ | ??# ????????????????????? | | ??# #?????????????????????? | | ??# #?????????????????????? | | ??# """ " """ """ ""#?????????????????????? | | ??# """ "" " """ T"??????????????????????? | | ??# """ "" """ """ ""#?????????????????????? | | ??+ % #?????????????????????? | | ??# ! = #?????????????????????? | | ??### ######### #########???????????????????????? | | ????# ????????# #???????????????????????????????? | | ????#?????????# #???????????????????????????????? | | ??????????????# #???????????????????????????????? | | ??????????????# ###########?????????????????????? | | ??????????????# # #?????????????????????? | | ??????????????# # """ """ #?????????????????????? | | ??????????????# # """ """ #?????????????????????? | | ??????????????# # """ """ #?????????????????????? | | ??????????????# # #?????????????????????? | | ??????????????# # ! #?????????????????????? | | ??????????????# +k% #?????????????????????? | | ??????????????# # #?????????????????????? | | ??????????????# ####k#########??????????????????? | | ??????? h/g #??????????????????? | | ??????? #g #??????????????????? | | ??????????####+##### # ! #??????????????????? | | ???????????????????# # %@ #??????????????????? | | ???????????????????# ##g######??????????????????? | | ???????????????????# a=g???????????????????????? | | ???????????????????# ?????????????????????????? | | ???????????????????#####?????????????????????????? | | ?????????????????????????????????????????????????? | | ?????????????????????????????????????????????????? | | ?????????????????????????????????????????????????? | | ?????????????????????????????????????????????????? | | ?????????????????????????????????????????????????? | | ?????????????????????????????????????????????????? | | ?????????????????????????????????????????????????? | | ?????????????????????????????????????????????????? | | ?????????????????????????????????????????????????? | | ?????????????????????????????????????????????????? | | ?????????????????????????????????????????????????? | | ?????????????????????????????????????????????????? | | ?????????????????????????????????????????????????? | | ?????????????????????????????????????????????????? | | ?????????????????????????????????????????????????? | | | | | | | | | | | +----------------------------------------------------+ Best States ------------- Heat Dissipation 31 Energy Generation 10 Energy Capacity 125 Matter Stores 300 Matter Capacity 300 Sight Range 16 Terrain Scan Range 14 Terrain Scan Density 10 Evasion (%) 50 Offensive Hacking 10 Item Schematics ----------------- None Robot Schematics ------------------ None Fabricated ------------ Nothing Alien Tech Used ----------------- None Achievements -------------- None Challenges ------------ None Game ------ Seed NovaAbsorptionDeconstructor Manual? 0 Play Time 00:15:56 Cumulative 47.8 hours Start 2024.04.26 @ 14:06:04 End 2024.04.26 @ 14:19:54 Sessions 1 Manual Loads 0 Difficulty Rogue Special Mode None Game No. 70 Rogue 70 Adventurer 0 Explorer 0 Win Type - Total 0 Types 0/0/0/0/0/0/0/0/0 Lore% 44 Gallery% 49 Achievement% 33 Wizard Run 0 Options --------- Layout 1 ASCII 0 Keyboard 1 Movement Arrows Keybinds 0 Fullscreen 2 Font 24/Smallcaps Map View 50x35 Zoom Use 0% Tactical HUD 1 Map Filters NONE Filters NONE Steam 1 RUN: 595ba483-8cab-446e-b44f-02cec3ef6b73